lending/lending_fUSD_20250316
["ID","MTS","AMOUNT","RATE_DAILY","PERIOD"]
[356231516,1742112646238,-502.82,0.00041917,31]
[356231517,1742112646249,-500.0,0.00041917,31]
[356231518,1742112646260,-2343.53,0.00041917,31]
[356231519,1742112646269,-500.0,0.00041917,31]
[356231520,1742112646280,-687.97,0.00041917,31]
[356231521,1742112646290,-500.0,0.00041917,31]
[356231522,1742112646300,-500.0,0.00041917,31]
[356231523,1742112646309,-500.0,0.00041917,31]
[356231524,1742112646318,-500.0,0.00041917,31]
[356231525,1742112646328,-3099.82,0.00041917,2]
[356231526,1742112646337,-500.0,0.00041917,31]
[356231527,1742112646347,-500.0,0.00041917,31]
[356231528,1742112646356,-150.0,0.00041936,30]
[356231529,1742112646366,-150.0,0.00041936,30]
[356231530,1742112646377,-2274.0,0.00042,120]
[356231531,1742112646387,-150.0,0.00042089,120]
[356231532,1742112646396,-534.93487915,0.00042141,9]
[356231533,1742112646406,-760.13362196,0.00042152,6]
[356231534,1742112646416,-1313.51561,0.00042191,31]
[356231535,1742112646425,-156.801184,0.00042191,31]
[356231536,1742112646434,-151.21597,0.00042191,31]
[356231537,1742112646444,-1612.967399,0.00042191,31]
[356231538,1742112646453,-500.0,0.00042191,31]
[356231539,1742112646464,-769.16,0.00042191,31]
[356231540,1742112646473,-458.47988936,0.00042191,2]
[356231541,1742112646483,-546.94,0.00042191,31]
[356231542,1742112646492,-500.0,0.00042191,31]
[356231543,1742112646501,-500.0,0.00042191,31]
[356231544,1742112646512,-500.0,0.00042191,31]
[356231545,1742112646521,-500.0,0.00042191,31]
[356231546,1742112646530,-500.0,0.00042191,31]
[356231547,1742112646540,-500.0,0.00042191,31]
[356231548,1742112646550,-240.12,0.00042191,31]
[356231549,1742112646560,-500.0,0.00042191,31]
[356231551,1742112646569,-535.19,0.00042191,10]
[356231553,1742112646578,-500.0,0.00042191,31]
[356231555,1742112646587,-500.0,0.00042191,31]
[356231557,1742112646598,-300.0,0.00042191,31]
[356231559,1742112646607,-500.0,0.00042191,31]
[356231561,1742112646617,-500.0,0.00042191,31]
[356231563,1742112646626,-500.0,0.00042191,31]
[356231565,1742112646636,-500.0,0.00042191,31]
[356231567,1742112646646,-500.0,0.00042191,31]
[356231569,1742112646655,-570.16525256,0.00042191,31]
[356231571,1742112646666,-500.0,0.00042191,31]
[356231573,1742112646675,-500.0,0.00042191,31]
[356231575,1742112646685,-500.0,0.00042191,31]
[356231577,1742112646694,-500.0,0.00042191,31]
[356231579,1742112646704,-500.0,0.00042191,31]
[356231581,1742112646714,-692.2,0.00042191,31]
[356231583,1742112646723,-500.0,0.00042191,31]
[356231585,1742112646733,-500.0,0.00042191,31]
[356231587,1742112646742,-500.0,0.00042191,31]
[356231589,1742112646751,-500.0,0.00042191,31]
[356231591,1742112646760,-500.0,0.00042191,31]
[356231593,1742112646769,-500.0,0.00042191,31]
[356231595,1742112646779,-500.0,0.00042191,31]
[356231597,1742112646789,-500.0,0.00042191,31]
[356231599,1742112646798,-500.0,0.00042191,31]
[356231600,1742112646807,-571.73,0.00042191,31]
[356231602,1742112646817,-500.0,0.00042191,31]
[356231605,1742112646827,-500.0,0.00042191,31]
[356231606,1742112646837,-613.34,0.00042191,31]
[356231608,1742112646846,-500.0,0.00042191,31]
[356231610,1742112646857,-551.99,0.00042191,31]
[356231612,1742112646866,-500.0,0.00042191,31]
[356231614,1742112646875,-500.0,0.00042191,31]
[356231616,1742112646886,-500.0,0.00042191,31]
[356231618,1742112646896,-349.19331528,0.00042191,31]
[356231620,1742112646905,-653.76,0.00042191,31]
[356231622,1742112646914,-509.99,0.00042191,2]
[356231624,1742112646924,-500.0,0.00042191,31]
[356231626,1742112646933,-597.79,0.00042191,31]
[356231628,1742112646943,-500.0,0.00042191,31]
[356231630,1742112646953,-201.44590387,0.00042191,31]
[356231632,1742112646962,-500.0,0.00042191,31]
[356231634,1742112646972,-500.0,0.00042191,31]
[356231636,1742112646981,-605.78,0.00042191,31]
[356231638,1742112646990,-549.84,0.00042191,31]
[356231640,1742112647000,-772.76,0.00042191,7]
[356231642,1742112647009,-500.0,0.00042191,31]
[356231644,1742112647018,-500.0,0.00042191,31]
[356231646,1742112647028,-500.0,0.00042191,31]
[356231648,1742112647037,-500.0,0.00042191,31]
[356231650,1742112647048,-624.26,0.00042191,31]
[356231652,1742112647058,-500.0,0.00042191,31]
[356231654,1742112647068,-500.0,0.00042191,31]
[356231656,1742112647077,-500.0,0.00042191,31]
[356231658,1742112647091,-500.0,0.00042191,31]
[356231660,1742112647100,-560.61528089,0.00042191,31]
[356231662,1742112647110,-608.99,0.00042191,31]
[356231664,1742112647119,-199.12,0.00042191,31]
[356231666,1742112647128,-500.0,0.00042191,31]
[356231668,1742112647138,-500.0,0.00042191,31]
[356231670,1742112647147,-500.0,0.00042191,31]
[356231672,1742112647156,-500.0,0.00042191,31]
[356231674,1742112647167,-500.0,0.00042191,31]
[356231676,1742112647179,-759.22,0.00042191,31]
[356231678,1742112647188,-500.0,0.00042191,31]
[356231680,1742112647198,-500.0,0.00042191,31]
[356231682,1742112647208,-900.74,0.00042191,31]
[356231684,1742112647219,-500.0,0.00042191,31]
[356231686,1742112647228,-819.3,0.00042191,31]
[356231688,1742112647238,-672.08,0.00042191,31]
[356231690,1742112647247,-500.0,0.00042191,31]
[356231692,1742112647256,-500.0,0.00042191,31]
[356231694,1742112647266,-500.0,0.00042191,31]
[356231696,1742112647275,-500.0,0.00042191,31]
[356231698,1742112647285,-500.0,0.00042191,31]
[356231700,1742112647294,-500.0,0.00042191,31]
[356231702,1742112647305,-500.0,0.00042191,31]
[356231704,1742112647314,-500.0,0.00042191,31]
[356231706,1742112647324,-500.0,0.00042191,31]
[356231708,1742112647334,-500.0,0.00042191,31]
[356231710,1742112647343,-548.48,0.00042191,31]
[356231712,1742112647352,-500.0,0.00042191,31]
[356231718,1742112647446,-500.0,0.00042191,31]
[356231719,1742112647462,-500.0,0.00042191,31]
[356231720,1742112647472,-423.77790943,0.00042191,31]
[356231721,1742112647482,-500.0,0.00042191,31]
[356231722,1742112647492,-500.0,0.00042191,31]
[356231723,1742112647501,-575.89988002,0.00042191,31]
[356231724,1742112647511,-500.0,0.00042191,31]
[356231725,1742112647521,-500.0,0.00042191,31]
[356231726,1742112647531,-500.0,0.00042191,31]
[356231727,1742112647542,-500.0,0.00042191,31]
[356231728,1742112647551,-500.0,0.00042191,31]
[356231729,1742112647561,-500.0,0.00042191,31]
[356231730,1742112647571,-500.0,0.00042191,31]
[356231731,1742112647581,-500.0,0.00042191,31]
[356231732,1742112647591,-1446.81,0.00042191,31]
[356231733,1742112647601,-500.0,0.00042191,31]
[356231734,1742112647611,-500.0,0.00042191,31]
[356231735,1742112647621,-500.0,0.00042191,31]
[356231736,1742112647632,-500.0,0.00042191,31]
[356231737,1742112647642,-500.0,0.00042191,31]
[356231738,1742112647652,-500.0,0.00042191,31]
[356231739,1742112647663,-500.0,0.00042191,31]
[356231740,1742112647673,-500.0,0.00042191,31]
[356231741,1742112647683,-500.0,0.00042191,31]
[356231742,1742112647693,-500.0,0.00042191,31]
[356231743,1742112647703,-500.0,0.00042191,31]
[356231744,1742112647713,-500.0,0.00042191,31]
[356231745,1742112647724,-675.73,0.00042191,31]
[356231746,1742112647734,-871.63,0.00042191,31]
[356231747,1742112647744,-500.0,0.00042191,31]
[356231748,1742112647755,-500.0,0.00042191,31]
[356231749,1742112647765,-500.0,0.00042191,31]
[356231750,1742112647775,-500.0,0.00042191,31]
[356231751,1742112647786,-500.0,0.00042191,31]
[356231752,1742112647797,-500.0,0.00042191,31]
[356231753,1742112647806,-500.0,0.00042191,31]
[356231754,1742112647817,-500.0,0.00042191,31]
[356231755,1742112647827,-500.0,0.00042191,31]
[356231756,1742112647837,-863.02,0.00042191,31]
[356231757,1742112647848,-500.0,0.00042191,31]
[356231758,1742112647858,-500.0,0.00042191,31]
[356231759,1742112647868,-500.0,0.00042191,31]
[356231760,1742112647878,-500.0,0.00042191,31]
[356231761,1742112647887,-500.0,0.00042191,31]
[356231762,1742112647897,-500.0,0.00042191,31]
[356231763,1742112647907,-500.0,0.00042191,31]
[356231764,1742112647916,-500.0,0.00042191,31]
[356231765,1742112647926,-500.0,0.00042191,30]
[356231766,1742112647935,-500.0,0.00042191,31]
[356231767,1742112647946,-500.0,0.00042191,31]
[356231768,1742112647958,-500.0,0.00042191,31]
[356231769,1742112647968,-500.0,0.00042191,31]
[356231770,1742112647978,-500.0,0.00042191,31]
[356231771,1742112647991,-697.71,0.00042191,31]
[356231772,1742112648001,-500.0,0.00042191,31]
[356231773,1742112648011,-500.0,0.00042191,31]
[356231774,1742112648023,-608.98,0.00042191,31]
[356231775,1742112648034,-500.0,0.00042191,31]
[356231776,1742112648045,-500.0,0.00042191,31]
[356231777,1742112648055,-500.0,0.00042191,31]
[356231778,1742112648065,-643.31,0.00042191,31]
[356231779,1742112648075,-500.0,0.00042191,31]
[356231780,1742112648089,-891.24,0.00042191,31]
[356231781,1742112648100,-1353.07,0.00042191,31]
[356231782,1742112648110,-971.5,0.00042191,31]
[356231783,1742112648121,-500.0,0.00042191,31]
[356231784,1742112648132,-500.0,0.00042191,31]
[356231785,1742112648143,-576.07687872,0.00042191,31]
[356231786,1742112648154,-500.0,0.00042191,31]
[356231787,1742112648168,-500.0,0.00042191,31]
[356231788,1742112648180,-500.0,0.00042191,31]
[356231789,1742112648191,-500.0,0.00042191,31]
[356231790,1742112648202,-500.0,0.00042191,31]
[356231791,1742112648212,-500.0,0.00042191,31]
[356231792,1742112648222,-500.0,0.00042191,31]
[356231793,1742112648232,-500.0,0.00042191,31]
[356231794,1742112648243,-500.0,0.00042191,31]
[356231795,1742112648253,-500.0,0.00042191,31]
[356231796,1742112648263,-500.0,0.00042191,31]
[356231797,1742112648274,-772.26,0.00042191,31]
[356231798,1742112648284,-500.0,0.00042191,31]
[356231799,1742112648295,-1398.92,0.00042191,31]
[356231800,1742112648305,-500.0,0.00042191,31]
[356231801,1742112648316,-500.0,0.00042191,31]
[356231802,1742112648326,-858.63,0.00042191,31]
[356231803,1742112648336,-1233.15,0.00042191,31]
[356231804,1742112648347,-500.0,0.00042191,31]
[356231805,1742112648357,-500.0,0.00042191,31]
[356231806,1742112648367,-500.0,0.00042191,31]
[356231807,1742112648377,-500.0,0.00042191,31]
[356231808,1742112648388,-500.0,0.00042191,31]
[356231809,1742112648399,-500.0,0.00042191,31]
[356231810,1742112648409,-500.0,0.00042191,31]
[356231811,1742112648420,-500.0,0.00042191,31]
[356231812,1742112648429,-500.0,0.00042191,31]
[356231813,1742112648441,-533.59,0.00042191,31]
[356231814,1742112648451,-1027.76,0.00042191,31]
[356231815,1742112648461,-550.84,0.00042191,31]
[356231816,1742112648471,-500.0,0.00042191,31]
[356231817,1742112648482,-500.0,0.00042191,31]
[356231818,1742112648492,-500.0,0.00042191,31]
[356231819,1742112648502,-1245.95,0.00042191,31]
[356231820,1742112648512,-500.0,0.00042191,31]
[356231821,1742112648522,-566.78724303,0.00042191,31]
[356231822,1742112648532,-500.0,0.00042191,31]
[356231823,1742112648542,-556.38,0.00042191,31]
[356231824,1742112648551,-581.02681148,0.00042191,31]
[356231825,1742112648560,-500.0,0.00042191,31]
[356231826,1742112648570,-500.0,0.00042191,31]
[356231827,1742112648580,-500.0,0.00042191,31]
[356231828,1742112648590,-500.0,0.00042191,31]
[356231829,1742112648600,-500.0,0.00042191,31]
[356231830,1742112648610,-500.0,0.00042191,31]
[356231831,1742112648620,-500.0,0.00042191,31]
[356231832,1742112648630,-500.0,0.00042191,31]
[356231833,1742112648639,-500.0,0.00042191,31]
[356231834,1742112648649,-500.0,0.00042191,31]
[356231835,1742112648659,-500.0,0.00042191,31]
[356231836,1742112648669,-500.0,0.00042191,31]
[356231837,1742112648679,-500.0,0.00042191,31]
[356231838,1742112648689,-581.34,0.00042191,31]
[356231839,1742112648699,-500.0,0.00042191,31]
[356231840,1742112648709,-500.0,0.00042191,31]
[356231841,1742112648719,-500.0,0.00042191,31]
[356231842,1742112648729,-500.0,0.00042191,31]
[356231843,1742112648739,-500.0,0.00042191,31]
[356231844,1742112648749,-500.0,0.00042191,31]
[356231845,1742112648758,-256.08719442,0.00042191,31]
[356231846,1742112648768,-500.0,0.00042191,31]
[356231847,1742112648778,-500.0,0.00042191,31]
[356231848,1742112648788,-537.09,0.00042191,31]
[356231849,1742112648798,-500.0,0.00042191,31]
[356231850,1742112648808,-500.0,0.00042191,31]
[356231851,1742112648818,-500.0,0.00042191,31]
[356231852,1742112648828,-500.0,0.00042191,31]
[356231853,1742112648837,-500.0,0.00042191,31]
[356231854,1742112648847,-626.8,0.00042191,31]
[356231855,1742112648858,-500.0,0.00042191,31]
[356231856,1742112648868,-500.0,0.00042191,31]
[356231857,1742112648877,-500.0,0.00042191,31]
[356231858,1742112648887,-500.0,0.00042191,31]
[356231859,1742112648897,-500.0,0.00042191,31]
[356231860,1742112648906,-500.0,0.00042191,31]
[356231861,1742112648917,-500.0,0.00042191,31]
[356231862,1742112648927,-500.0,0.00042191,31]
[356231863,1742112648937,-189.2294453,0.00042191,31]
[356231864,1742112648947,-500.0,0.00042191,31]
[356231865,1742112648957,-500.0,0.00042191,31]
[356231866,1742112648967,-500.0,0.00042191,31]
[356231867,1742112648978,-500.0,0.00042191,31]
[356231868,1742112648988,-500.0,0.00042191,31]
[356231869,1742112648998,-500.0,0.00042191,31]
[356231870,1742112649008,-882.8,0.00042191,31]
[356231871,1742112649017,-502.82,0.00042191,31]
[356231872,1742112649028,-500.0,0.00042191,31]
[356231873,1742112649038,-2343.53,0.00042191,31]
[356231874,1742112649047,-500.0,0.00042191,31]
[356231875,1742112649057,-687.97,0.00042191,31]
[356231876,1742112649066,-500.0,0.00042191,31]
[356231877,1742112649076,-500.0,0.00042191,31]
[356231878,1742112649090,-500.0,0.00042191,31]
[356231879,1742112649101,-155.12045482,0.00042191,31]
[356231880,1742112649111,-3099.82,0.00042191,2]
[356231881,1742112649120,-500.0,0.00042191,31]
[356231882,1742112649131,-500.0,0.00042191,31]
[356231883,1742112649141,-213.0,0.00042328,20]
[356231884,1742112649151,-150.0,0.00042418,120]
[356231885,1742112649163,-150.0,0.00042435,30]
[356231886,1742112649172,-371.11,0.00042441,2]
[356231887,1742112649184,-1313.51561,0.00042465,31]
[356231888,1742112649193,-1612.967399,0.00042465,31]
[356231889,1742112649204,-500.0,0.00042465,31]
[356231890,1742112649214,-769.16,0.00042465,31]
[356231891,1742112649224,-546.94,0.00042465,31]
[356231892,1742112649234,-500.0,0.00042465,31]
[356231893,1742112649244,-500.0,0.00042465,31]
[356231894,1742112649253,-500.0,0.00042465,31]
[356231895,1742112649263,-500.0,0.00042465,31]
[356231896,1742112649274,-500.0,0.00042465,31]
[356231897,1742112649284,-500.0,0.00042465,31]
[356231898,1742112649294,-500.0,0.00042465,31]
[356231899,1742112649304,-535.19,0.00042465,10]
[356231900,1742112649316,-500.0,0.00042465,31]
[356231901,1742112649326,-500.0,0.00042465,31]
[356231902,1742112649336,-300.0,0.00042465,31]
[356231903,1742112649346,-500.0,0.00042465,31]
[356231904,1742112649356,-500.0,0.00042465,31]
[356231905,1742112649366,-500.0,0.00042465,31]
[356231906,1742112649376,-500.0,0.00042465,31]
[356231907,1742112649386,-500.0,0.00042465,31]
[356231908,1742112649396,-500.0,0.00042465,31]
[356231909,1742112649406,-500.0,0.00042465,31]
[356231910,1742112649416,-500.0,0.00042465,31]
[356231911,1742112649426,-500.0,0.00042465,31]
[356231912,1742112649437,-500.0,0.00042465,31]
[356231913,1742112649447,-692.2,0.00042465,31]
[356231914,1742112649456,-481.08037729,0.00042465,31]
[356231915,1742112649504,-18.91962271,0.00042465,31]
[356231916,1742112649514,-500.0,0.00042465,31]
[356231917,1742112649526,-32.50917248,0.00042465,31]
[356231918,1742112649764,-467.49082752,0.00042465,31]
[356231919,1742112649774,-500.0,0.00042465,31]
[356231920,1742112649784,-500.0,0.00042465,31]
[356231921,1742112649794,-500.0,0.00042465,31]
[356231922,1742112649805,-500.0,0.00042465,31]
[356231923,1742112649816,-500.0,0.00042465,31]
[356231924,1742112649826,-500.0,0.00042465,31]
[356231925,1742112649837,-571.73,0.00042465,31]
[356231926,1742112649847,-500.0,0.00042465,31]
[356231927,1742112649859,-138.60803273,0.00042465,31]
[356231928,1742112649873,-361.39196727,0.00042465,31]
[356231929,1742112649884,-259.11704772,0.00042465,31]
[356231930,1742112649896,-354.22295228,0.00042465,31]
[356231931,1742112649906,-164.85534254,0.00042465,31]
[356231932,1742112649918,-290.811,0.00042465,31]
[356231933,1742112649930,-44.33365746,0.00042465,31]
[356231934,1742112649940,-551.99,0.00042465,31]
[356231935,1742112649950,-106.4778001,0.00042465,31]
[356231936,1742112649962,-397.51553435,0.00042465,31]
[356231937,1742112649978,-138.54556824,0.00042465,31]
[356231938,1742112649989,-500.0,0.00042465,31]
[356231939,1742112649999,-500.0,0.00042465,31]
[356231940,1742112650010,-653.76,0.00042465,31]
[356231941,1742112650020,-509.99,0.00042465,2]
[356231942,1742112650030,-500.0,0.00042465,31]
[356231943,1742112650039,-597.79,0.00042465,31]
[356231944,1742112650049,-500.0,0.00042465,31]
[356231945,1742112650059,-500.0,0.00042465,31]
[356231946,1742112650069,-500.0,0.00042465,31]
[356231947,1742112650079,-605.78,0.00042465,31]
[356231948,1742112650092,-549.84,0.00042465,31]
[356231949,1742112650101,-772.76,0.00042465,7]
[356231950,1742112650111,-420.27389081,0.00042465,31]
[356231951,1742112650120,-500.0,0.00042465,31]
[356231952,1742112650130,-500.0,0.00042465,31]
[356231953,1742112650142,-500.0,0.00042465,31]
[356231954,1742112650152,-624.26,0.00042465,31]
[356231955,1742112650162,-500.0,0.00042465,31]
[356231956,1742112650174,-500.0,0.00042465,31]
[356231957,1742112650185,-102.18874479,0.00042465,31]
[356231958,1742112650198,-340.16568311,0.00042465,31]
[356231959,1742112650209,-155.521515,0.00042465,31]
[356231960,1742112650221,-344.478485,0.00042465,31]
[356231961,1742112650231,-608.99,0.00042465,31]
[356231962,1742112650242,-500.0,0.00042465,31]
[356231963,1742112650252,-500.0,0.00042465,31]
[356231964,1742112650262,-216.67356606,0.00042465,31]
[356231965,1742112650273,-283.32643394,0.00042465,31]
[356231966,1742112650283,-495.97814608,0.00042465,31]
[356231967,1742112650295,-4.02185392,0.00042465,31]
[356231968,1742112650305,-500.0,0.00042465,31]
[356231969,1742112650316,-413.62889427,0.00042465,31]
[356231970,1742112650545,-345.59110573,0.00042465,31]
[356231971,1742112650555,-500.0,0.00042465,31]
[356231972,1742112650569,-500.0,0.00042465,31]
[356231973,1742112650580,-900.74,0.00042465,31]
[356231974,1742112650590,-500.0,0.00042465,31]
[356231975,1742112650599,-819.3,0.00042465,31]
[356231976,1742112650608,-672.08,0.00042465,31]
[356231977,1742112650618,-500.0,0.00042465,31]
[356231978,1742112650627,-623.01737528,0.00042465,31]
[356231979,1742112650637,-500.0,0.00042465,31]
[356231980,1742112650647,-500.0,0.00042465,31]
[356231981,1742112650656,-500.0,0.00042465,31]
[356231982,1742112650666,-500.0,0.00042465,31]
[356231983,1742112650676,-500.0,0.00042465,31]
[356231984,1742112650686,-500.0,0.00042465,31]
[356231985,1742112650696,-500.0,0.00042465,31]
[356231986,1742112650705,-500.0,0.00042465,31]
[356231987,1742112650715,-548.48,0.00042465,31]
[356231988,1742112650724,-500.0,0.00042465,31]
[356231989,1742112650748,-500.0,0.00042465,31]
[356231990,1742112650758,-500.0,0.00042465,31]
[356231991,1742112650768,-500.0,0.00042465,31]
[356231992,1742112650778,-500.0,0.00042465,31]
[356231993,1742112650787,-500.0,0.00042465,31]
[356231994,1742112650797,-500.0,0.00042465,31]
[356231995,1742112650807,-500.0,0.00042465,31]
[356231996,1742112650816,-500.0,0.00042465,31]
[356231997,1742112650828,-500.0,0.00042465,31]
[356231998,1742112650838,-500.0,0.00042465,31]
[356231999,1742112650848,-500.0,0.00042465,31]
[356232000,1742112650858,-500.0,0.00042465,31]
[356232001,1742112650867,-1446.81,0.00042465,31]
[356232002,1742112650877,-500.0,0.00042465,31]
[356232003,1742112650887,-500.0,0.00042465,31]
[356232004,1742112650897,-500.0,0.00042465,31]
[356232005,1742112650906,-500.0,0.00042465,31]
[356232006,1742112650916,-500.0,0.00042465,31]
[356232007,1742112650925,-500.0,0.00042465,31]
[356232008,1742112650935,-500.0,0.00042465,31]
[356232009,1742112650944,-500.0,0.00042465,31]
[356232010,1742112650954,-500.0,0.00042465,31]
[356232011,1742112650963,-500.0,0.00042465,31]
[356232012,1742112650974,-500.0,0.00042465,31]
[356232013,1742112650987,-500.0,0.00042465,31]
[356232014,1742112650996,-675.73,0.00042465,31]
[356232015,1742112651006,-871.63,0.00042465,31]
[356232016,1742112651016,-500.0,0.00042465,31]
[356232017,1742112651026,-500.0,0.00042465,31]
[356232018,1742112651038,-500.0,0.00042465,31]
[356232019,1742112651048,-500.0,0.00042465,31]
[356232020,1742112651058,-500.0,0.00042465,31]
[356232021,1742112651070,-500.0,0.00042465,31]
[356232022,1742112651079,-500.0,0.00042465,31]
[356232023,1742112651093,-500.0,0.00042465,31]
[356232024,1742112651103,-500.0,0.00042465,31]
[356232025,1742112651114,-863.02,0.00042465,31]
[356232026,1742112651124,-500.0,0.00042465,31]
[356232027,1742112651134,-500.0,0.00042465,31]
[356232028,1742112651144,-500.0,0.00042465,31]
[356232029,1742112651153,-500.0,0.00042465,31]
[356232030,1742112651164,-500.0,0.00042465,31]
[356232031,1742112651174,-500.0,0.00042465,31]
[356232032,1742112651183,-500.0,0.00042465,31]
[356232033,1742112651192,-500.0,0.00042465,31]
[356232034,1742112651202,-500.0,0.00042465,30]
[356232035,1742112651212,-500.0,0.00042465,31]
[356232036,1742112651221,-500.0,0.00042465,31]
[356232037,1742112651231,-500.0,0.00042465,31]
[356232038,1742112651241,-500.0,0.00042465,31]
[356232039,1742112651250,-697.71,0.00042465,31]
[356232040,1742112651260,-500.0,0.00042465,31]
[356232041,1742112651269,-500.0,0.00042465,31]
[356232042,1742112651280,-608.98,0.00042465,31]
[356232043,1742112651290,-500.0,0.00042465,31]
[356232044,1742112651299,-500.0,0.00042465,31]
[356232045,1742112651310,-500.0,0.00042465,31]
[356232046,1742112651320,-643.31,0.00042465,31]
[356232047,1742112651330,-500.0,0.00042465,31]
[356232048,1742112651341,-891.24,0.00042465,31]
[356232049,1742112651351,-1353.07,0.00042465,31]
[356232050,1742112651362,-971.5,0.00042465,31]
[356232051,1742112651372,-500.0,0.00042465,31]
[356232052,1742112651383,-500.0,0.00042465,31]
[356232053,1742112651393,-500.0,0.00042465,31]
[356232054,1742112651403,-500.0,0.00042465,31]
[356232055,1742112651413,-500.0,0.00042465,31]
[356232056,1742112651422,-500.0,0.00042465,31]
[356232057,1742112651431,-500.0,0.00042465,31]
[356232058,1742112651441,-500.0,0.00042465,31]
[356232059,1742112651451,-500.0,0.00042465,31]
[356232060,1742112651460,-500.0,0.00042465,31]
[356232061,1742112651470,-500.0,0.00042465,31]
[356232062,1742112651479,-500.0,0.00042465,31]
[356232063,1742112651490,-500.0,0.00042465,31]
[356232064,1742112651500,-772.26,0.00042465,31]
[356232065,1742112651509,-500.0,0.00042465,31]
[356232066,1742112651519,-1398.92,0.00042465,31]
[356232067,1742112651529,-500.0,0.00042465,31]
[356232068,1742112651539,-500.0,0.00042465,31]
[356232069,1742112651548,-858.63,0.00042465,31]
[356232070,1742112651558,-1233.15,0.00042465,31]
[356232071,1742112651568,-500.0,0.00042465,31]
[356232072,1742112651578,-500.0,0.00042465,31]
[356232073,1742112651588,-500.0,0.00042465,31]
[356232074,1742112651597,-500.0,0.00042465,31]
[356232075,1742112651607,-500.0,0.00042465,31]
[356232076,1742112651617,-500.0,0.00042465,31]
[356232077,1742112651627,-500.0,0.00042465,31]
[356232078,1742112651636,-500.0,0.00042465,31]
[356232079,1742112651646,-500.0,0.00042465,31]
[356232080,1742112651671,-533.59,0.00042465,31]
[356232081,1742112651681,-1027.76,0.00042465,31]
[356232082,1742112651691,-550.84,0.00042465,31]
[356232083,1742112651703,-500.0,0.00042465,31]
[356232084,1742112651713,-500.0,0.00042465,31]
[356232085,1742112651724,-500.0,0.00042465,31]
[356232086,1742112651733,-1245.95,0.00042465,31]
[356232087,1742112651742,-500.0,0.00042465,31]
[356232088,1742112651752,-500.0,0.00042465,31]
[356232089,1742112651761,-556.38,0.00042465,31]
[356232090,1742112651771,-500.0,0.00042465,31]
[356232091,1742112651780,-500.0,0.00042465,31]
[356232092,1742112651790,-500.0,0.00042465,31]
[356232093,1742112651801,-500.0,0.00042465,31]
[356232094,1742112651811,-500.0,0.00042465,31]
[356232095,1742112651821,-500.0,0.00042465,31]
[356232096,1742112651830,-500.0,0.00042465,31]
[356232097,1742112651840,-500.0,0.00042465,31]
[356232098,1742112651850,-500.0,0.00042465,31]
[356232099,1742112651862,-500.0,0.00042465,31]
[356232100,1742112651871,-500.0,0.00042465,31]
[356232101,1742112651881,-500.0,0.00042465,31]